Cogmind - Beta 16.1 @@@ ROGUE MODE // 2026.03.26 @ 08:55:51 Player: RockoDyne Result: Destroyed by 1E-GVP(R) with Subdweller Machine Gun Performance ------------- Evolutions (0) 0 Regions Visited (2) 400 Robots Destroyed (24) 120 Value Destroyed (669) 669 Prototype IDs (0) 0 Alien Tech Used (0) 0 Bonus (-9) -9 TOTAL SCORE: 1180 Bonus ------- Friendly Fire -9 Cogmind --------- Core Integrity 0/250 Matter 207/300 Energy 91/100 System Corruption 0% Temperature Cool (0) Movement Rolling (110) Location -10/Subcaves Parts ------- > --- POWER (1) -------- (None) > --- PROPULSION (2) --- Subdweller Monowheel > --- UTILITY (2) ------ (None) > --- WEAPON (2) ------- (None) > --- INVENTORY (5) ---- Light Ion Engine Compact Wheel Small Storage Unit High-capacity Matter Pod (200) Peak State ------------ > --- POWER ------------ Ion Engine > --- PROPULSION ------- Wheel Subdweller Monowheel > --- UTILITY ---------- Scrap Shield > --- WEAPON ----------- EM Pulse Gun EMP Blaster > --- INVENTORY -------- Small Storage Unit High-capacity Matter Pod Rocket Launcher [Rating: 11] Favorites ----------- Power Ion Engine Engine Ion Engine Propulsion Light Treads Treads Light Treads Wheel Wheel Utility Small Storage Unit Storage Small Storage Unit Protection Scrap Shield Weapon Light Assault Rifle Energy Gun EM Pulse Gun Ballistic Gun Light Assault Rifle Launcher EMP Blaster Build | -11 -10 -10 ------- Run | Yrd Mat Sub Slots Evolved . | . . . Power . | . . . Propulsion . | . . . Utility . | . . . Weapon . | . . . Parts Attached 16 | 6 5 5 Power 2 | 1 1 . Engine 2 | 1 1 . Core . | . . . Reactor . | . . . Propulsion 5 | 2 2 1 Treads 2 | 2 . . Leg . | . . . Wheel 3 | . 2 1 Hover . | . . . Flight . | . . . Utility 3 | 1 1 1 Device . | . . . Storage 2 | 1 1 . Processor . | . . . Hackware . | . . . Protection 1 | . . 1 Artifact . | . . . Weapon 6 | 2 1 3 Energy Gun 1 | . . 1 Energy Cannon . | . . . Ballistic Gun 2 | 2 . . Ballistic Cannon . | . . . Launcher 3 | . 1 2 Special Weapon . | . . . Impact Weapon . | . . . Slashing Weapon . | . . . Piercing Weapon . | . . . Special Melee Weapon . | . . . Unidentified Prototypes . | . . . Parts Lost 9 | . 2 7 Power 1 | . . 1 Propulsion 2 | . 1 1 Utility 1 | . . 1 Weapon 5 | . 1 4 Highest Loss Streak 5 | . 2 5 To Critical Strikes . | . . . Average Backups 5 | 3 5 5 Power . | . 1 1 Propulsion 1 | 1 1 . Utility . | . . 2 Weapon 2 | . 2 1 Tool/Special . | . . . Unused Backups 6 | . 2 4 Power . | . . . Propulsion 1 | . . 1 Utility 5 | . 2 3 Weapon . | . . . Tool/Special . | . . . Average Slot Usage (%) 92 | . 95 83 Engine 13 | . 14 11 Treads 14 | . 19 . Wheel 12 | . 6 27 Storage 23 | . 26 17 Energy Gun 2 | . . 7 Ballistic Gun 17 | . 23 2 Launcher 6 | . 4 13 Peak Build Rating 11 | 6 9 11 Average Rating 7 | 5 7 8 On Entrance 4 | . 6 8 Avg Prop Armor Cover (%) . | . . . Naked Turns . | . . . Heaviest Build 29 | 12 19 29 Greatest Support 40 | 40 40 30 Greatest Overweight (x) . | . . . Average Overweight (x) . | . . . Largest Inventory Capacity 8 | 8 8 8 Average Capacity 7 | 7 8 6 Most Carried 8 | 4 8 8 Average Carried 5 | 3 5 5 Final Capacity 8 | 8 8 5 Final Carried 7 | 4 7 4 Class Distribution -------------------- 100% | Mutant Dominant Class ---------------- Mutant | -10/Materials Mutant | -10/Subcaves Resources | -11 -10 -10 ----------- Run | Yrd Mat Sub Matter Collected 669 | 203 409 57 Remotely . | . . . Salvage Created 757 | . 438 319 Parts 43 | . 23 20 Haulers Intercepted . | . . . Recyclers Shooed . | . . . Parts Field Recycled . | . . . Retrieved Matter . | . . . Parts Self-Destructed 15 | . . 15 Prevented . | . . . Parts Restored . | . . . Kills | -11 -10 -10 ------- Run | Yrd Mat Sub Combat Hostiles Destroyed 22 | . 11 11 Guns 10 | . 10 . AOE 12 | . 1 11 Classes Destroyed 5 | . 4 1 Recycler 1 | . 1 . Watcher 1 | . 1 . Swarmer 7 | . 5 2 Grunt 6 | . 6 . Subdweller 9 | . . 9 Best Kill Streak 9 | . 4 9 Combat Bots Only 9 | . 4 9 Max Kills in Single Turn 2 | . 2 2 Gunslinging . | . . . Exploded 2 | . 1 2 Melee . | . . . Uniques/NPCs Destroyed . | . . . Combat | -11 -10 -10 -------- Run | Yrd Mat Sub Hostile Shots Fired 192 | . 98 94 Missed 73 | . 34 39 Hits 119 | . 64 55 Projectile 119 | . 64 55 Damage Taken 1448 | . 625 823 Core 272 | . 95 177 Absorbed by Shields . | . . . Core Remaining (%) 100 | 100 . . Volleys Fired 58 | . 34 24 Largest 2 | . 2 2 Hottest 73 | . 53 73 Shots Fired 98 | . 63 35 Gun 76 | . 60 16 Cannon . | . . . Launcher 22 | . 3 19 Special . | . . . Kinetic 67 | . 60 7 Thermal . | . . . Explosive 6 | . . 6 Electromagnetic 25 | . 3 22 Robot Hit Streak 4 | . 4 4 Robot Miss Streak 3 | . 3 3 Penetration Max . | . . . Secondary Targets 2 | . 2 . Max Gunslinging Chain 1 | . 1 . Shots Hit Robots 46 | . 35 11 Core Hits 47 | . 22 25 Critical Kills . | . . . Critical Parts Destroyed . | . . . Critical Strikes 1 | . . 1 Corrupt 1 | . . 1 Melee Attacks . | . . . Impact . | . . . Slashing . | . . . Piercing . | . . . Sneak Attacks . | . . . Combat Hostiles . | . . . Follow-up Attacks . | . . . Damage Inflicted 1904 | . 418 1486 Guns 360 | . 291 69 Cannons . | . . . Explosions 1544 | . 127 1417 Melee . | . . . Ramming . | . . . Kinetic 291 | . 291 . Thermal 152 | . . 152 Explosive 803 | . . 803 Electromagnetic 658 | . 127 531 Impact . | . . . Slashing . | . . . Piercing . | . . . Highest Corruption . | . . . Average Corruption . | . . . Corruption Purged . | . . . Corruption Blocked . | . . . Overload Shots . | . . . Overflow Damage . | . . . Projectiles . | . . . Explosions . | . . . Melee . | . . . Knockbacks . | . . . Impact . | . . . Kinetic . | . . . Secondary . | . . . Self-Inflicted Damage 3 | . . 3 Shots 1 | . . 1 Rammed . | . . . Targets Rammed . | . . . Kicked . | . . . Crushed . | . . . Highest Temperature 28 | . 28 16 Average Temperature 10 | . 10 8 Received Heat Transfer 402 | . 213 189 Siege Activations . | . . . Martial Activations . | . . . Shielding Activations . | . . . Robots Disrupted . | . . . Combat Hostiles . | . . . Robots Corrupted . | . . . Combat Hostiles . | . . . Parts Fried 1 | . . 1 Impact Corruptions . | . . . Robots Melted . | . . . Combat Hostiles . | . . . Parts Melted . | . . . Heat Transferred 150 | . . 150 Parts Sabotaged . | . . . Parts Stolen . | . . . Parts Stripped . | . . . Power Chain Reactions 2 | . . 2 Alert | -11 -10 -10 ------- Run | Yrd Mat Sub Maximum Alert Level . | . . . Low Security (%) 100 | 100 100 . Level 1 . | . . . Level 2 . | . . . Level 3 . | . . . Level 4 . | . . . Level 5 . | . . . High Security . | . . . Max Security . | . . . Peak Influence 94 | . 94 . Initial . | . . . Average 38 | . 48 . Influence Increases 798 | . 308 490 Destroy 0b10 Robot/C 260 | . 220 40 Destroy 0b10 Robot/NC 10 | . 10 . Destroy Leader 52 | . 52 . Successful Hack 26 | . 26 . Lose Combat Pursuer 450 | . . 450 Influence Decreases 496 | . 284 212 Entered New Map 12 | . . 12 Time Decay 394 | . 264 130 Lost Part 90 | . 20 70 Squads Dispatched 3 | . 3 . Investigation 3 | . 3 . Extermination . | . . . Reinforcement . | . . . Assault . | . . . Garrison . | . . . Intercept . | . . . Searches Triggered . | . . . Construction Impeded . | . . . Haulers Reinforced . | . . . Active Scanning Responses . | . . . Cargo Convoy Interrupts . | . . . Stealth | -11 -10 -10 --------- Run | Yrd Mat Sub Distress Signals 1 | . 1 . Communications Jammed . | . . . Distress Signals . | . . . Times Spotted 65 | . 18 47 Peak Tracking Total 9 | . 5 9 Tactical Retreats 3 | . . 3 Traps | -11 -10 -10 ------- Run | Yrd Mat Sub Traps Triggered 1 | . 1 . Indirectly . | . . . Trap Hack Attempts . | . . . Triggered . | . . . Disarmed . | . . . Reprogrammed . | . . . Reused . | . . . Traps Extracted . | . . . Installed . | . . . Triggered . | . . . Machines | -11 -10 -10 ---------- Run | Yrd Mat Sub Machines Disabled 2 | . . 2 Max in Single Turn 2 | . . 2 Machines Repaired . | . . . Machines Dismantled . | . . . Machines Sabotaged . | . . . Overloaded Fab Kills . | . . . Hacking | -11 -10 -10 --------- Run | Yrd Mat Sub Machines Accessed 3 | . 3 . Terminals 2 | . 2 . Fabricators . | . . . Repair Stations . | . . . Recycling Units 1 | . 1 . Scanalyzers . | . . . Garrison Access . | . . . Total Hacks 7 | . 7 . Successful 3 | . 3 . Failed 4 | . 4 . Catastrophic . | . . . Database Lockouts . | . . . Manual . | . . . Terminals 4 | . 4 . Fabricators . | . . . Repair Stations . | . . . Recycling Units 3 | . 3 . Scanalyzers . | . . . Garrison Access . | . . . Terminal Hacks 3 | . 3 . Record 2 | . 2 . Zone Layout 1 | . 1 . Fabricator Hacks . | . . . Repair Station Hacks . | . . . Recycling Unit Hacks . | . . . Scanalyzer . | . . . Garrison Access Hacks . | . . . Unauthorized Hacks . | . . . Terminals . | . . . Fabricators . | . . . Repair Stations . | . . . Recycling Units . | . . . Scanalyzers . | . . . Garrison Access . | . . . Data Cores Recovered . | . . . Used . | . . . Hacking Detections 3 | . 3 . Full Trace Events 1 | . 1 . Feedback Events . | . . . Feedback Blocked . | . . . Robot Schematics Acquired . | . . . Robots Built . | . . . Authchips . | . . . Time . | . . . Total Robot Build Rating . | . . . Part Schematics Acquired . | . . . Parts Built . | . . . Authchips . | . . . Time . | . . . Total Part Build Rating . | . . . Part Studies Acquired . | . . . Parts Repaired . | . . . Time . | . . . Parts Recycled . | . . . Recycled Matter . | . . . Retrieved Matter . | . . . Retrieved Components . | . . . Parts Scanalyzed . | . . . Part Schematics Acquired . | . . . Parts Damaged . | . . . Bothacking | -11 -10 -10 ------------ Run | Yrd Mat Sub Used RIF Installer . | . . . Robots Hacked . | . . . Non-combat . | . . . Combat . | . . . Robot Hacks Applied . | . . . Relay Couplers Released . | . . . Fabnet Peak Effective % . | . . . Robots Rewired . | . . . Allies Hacked . | . . . Hacks Repelled . | . . . Allies | -11 -10 -10 -------- Run | Yrd Mat Sub Total Allies . | . . . Largest Group . | . . . Highest-Rated Group . | . . . Highest-Rated Ally . | . . . Total Orders . | . . . Ally Attacks . | . . . Total Damage . | . . . Kills . | . . . Allies Corrupted . | . . . Allies Melted . | . . . Intel | -11 -10 -10 ------- Run | Yrd Mat Sub Active Infowar (turns) . | . . . Robot Analysis Total . | . . . Derelict Logs Recovered 1 | . . 1 Drone Launches . | . . . Drone Recoveries . | . . . Exploration | -11 -10 -10 ------------- Run | Yrd Mat Sub Turns Passed 1231 | 206 748 277 Spaces Moved 842 | 123 502 217 Core 5 | 5 . . Treads 417 | 118 299 . Legs . | . . . Wheels 420 | . 203 217 Hover . | . . . Flight . | . . . Fastest Speed 50 | 50 80 80 Average Speed 122 | 155 127 92 Slowest Speed 160 | 160 160 110 Overloaded Moves . | . . . Propulsion Burnouts . | . . . Robots Hopped . | . . . Potential Cave-ins . | . . . Cave-ins Triggered . | . . . Exploration Rate (%) 29 | 7 69 13 Regions Visited 2 Branch Regions 1 Pre-discovered Areas . | . . . Known Exits Taken . | . . . Unknown Exits Taken 2 | 1 1 . Scrap Searched . | . . . Spaces Dug . | . . . Terrain Destroyed 37 | . . 37 Melee . | . . . Projectile . | . . . AOE 37 | . . 37 Terrain Rammed . | . . . Walls Destroyed . | . . . Machines Disabled . | . . . Actions | -11 -10 -10 --------- Run | Yrd Mat Sub Total 963 | 138 560 265 Wait 1 | . 1 . Move 840 | 122 501 217 Hop . | . . . Pick Up 26 | 10 9 7 Fast Attach . | . . . Attach 19 | 6 7 6 Detach 6 | . 4 2 Swap 1 | . 1 . Drop 12 | . 3 9 Fire 58 | . 34 24 Melee . | . . . Ram . | . . . Kick . | . . . Crush . | . . . Escape Stasis . | . . . Rewire . | . . . Trap . | . . . Miscellaneous . | . . . Route ------- -11/Scrapyard -10/Materials (discovered 3 exits: [*Mat] / [*Min] / [*Sub]) -10/Subcaves (discovered 1 exit: *Rec) History --------- Turn | Location | Event 11 | -11/Scrapyard | Discovered new exit (range 15) 207 | -11/Scrapyard | Entered Materials 317 | -10/Materials | Build established: Mutant 468 | -10/Materials | Discovered new exit (range 10) 821 | -10/Materials | Discovered new exit (range 11) 897 | -10/Materials | Discovered new exit (range 14) 955 | -10/Materials | Entered Subcaves 956 | -10/Subcaves | Approached by a straggling Scientist 965 | -10/Subcaves | Identified exit to Recycling 1005 | -10/Subcaves | Core integrity fell below 50% 1102 | -10/Subcaves | Shifting Twisted Machinery released Scrap Shield 1174 | -10/Subcaves | Ambushed by swarm of Subdwellers 1178 | -10/Subcaves | Ambushed by Subdwellers from Twisted Machinery 1178 | -10/Subcaves | Ambushed by Subdwellers from Twisted Machinery 1198 | -10/Subcaves | Ambushed by Subdweller buried in earth 1198 | -10/Subcaves | Ambushed by Subdweller buried in earth 1210 | -10/Subcaves | Core integrity fell below 20% 1218 | -10/Subcaves | Lost 6 allies 1219 | -10/Subcaves | Destroyed 9 combat bots 1232 | -10/Subcaves | Destroyed by 1E-GVP(R) with Subdweller Machine Gun Last Messages --------------- 01192_ Scrap Shield destroyed. 01194_ A6-BI5(R) destroyed. 01198_ R1-4XV(R) destroyed. [Achievement: Do Not Disturb] 01198_ V7-1TD(R) destroyed. 01198_ Rocket Launcher destroyed. 01199_ 1E-GVP(R): "ARGHSUB!" 01200_ LF-PZ5(R) affixes Scrap Shield Fragment to Scrap Shield. 01209_ Chain reaction triggered in Corrupted Sub. Power Source. 01209_ Destroyed Scrap Shield. 4M-HDT(c): "I think it's somewhere west of here" 01216_ Wheel destroyed. 01221_ EMP Blaster destroyed. 01221_ 4M-HDT(c) destroyed. 01228_ Subatomizers dissect the Armor Integrity Analyzer. 01231_ 1E-GVP(R) affixes Scrap Shield Fragment to Scrap Shield. Map ----- +----------------------------------------------------+ | # #### # # ##?????????????????????? | | ## ###???????????????????? | | ##= ### # #???????????????????? | | %"## ### ##???????????????????? | | ! # ##???????????????????? | | # ## # ##??????????????????? | | #### ## "#""%" #??????????????????? | | ##??## ## #### #??????????????????? | | #??## ## # ! ##?????????????????? | | #### ### ##????????????????? | | ## ####?# ##???????????????? | | ### # ### #????# ##??????????????? | | ## #?# """"##?## #???# #??????????????? | | ####?#" """"#???## #???# ###??????????????? | | #????### """#####?? #?### ##????????????????? | | ??????# """##"""""?###?# # ###?????????????????? | | ??????## "###; ??????# ######????????????????? | | ???????!"???# ????## ### #????????????????? | | ???????# ??## % ????# # ##???????????????? | | ???????? ??# = !; ##### #???????????????? | | ???????????# % ;;# #?# ##??????????????? | | ??????? ????# [ ; #?## ## ##?????????????? | | ???????# # == ##### ##????????????? | | ????????# *%=&R !%[## #????????????? | | ??????????# &%%[ == =%### #????????????? | | ??????????# % @ #### ##????????????? | | ??????????# &% R # ####?????????????? | | ??????????# R ## ###?????????????? | | ??????????## &% ### ##????????????? | | ??????????# #?# ##???????????? | | ??????????#### # !#?# ##??????????? | | ?????????????### %#?# #??????????? | | ?????????????? ###?# ### #??????????? | | ????????????? ???# ######??####??????????? | | ???????????? !% ##?? ??????????????????????? | | ???????????? ## #??" ??????????????????????? | | ????????????? ?##???## ??????????????????????? | | ???????????? ????????# ??????????????????????? | | ???????????????????????# #??????????????????????? | | ???????????????????????" ???????????????????????? | | ???????????????????????? ????????????????????????? | | ???????????????????????" ????????????????????????? | | ????????????????????????"????????????????????????? | | ?????????????????????????????????????????????????? | | ?????????????????????????????????????????????????? | | ?????????????????????????????????????????????????? | | ?????????????????????????????????????????????????? | | ?????????????????????????????????????????????????? | | ?????????????????????????????????????????????????? | | ?????????????????????????????????????????????????? | +----------------------------------------------------+ Best States ------------- Heat Dissipation 25 Energy Generation 10 Energy Capacity 250 Matter Stores 500 Matter Capacity 500 Sight Range 16 Terrain Scan Density 10 Armor Coverage 800 Evasion (%) 44 Recoil Reduction 2 Item Schematics ----------------- None Robot Schematics ------------------ None Fabricated ------------ Nothing Repaired ---------- Nothing Studied --------- None Alien Tech Used ----------------- None Achievements -------------- DATA ERROR: Steam Global Achievement% Do Not Disturb There's More Where That Came From Challenges ------------ None Game ------ Seed DrainedDecoderArmor Manual? 0 Play Time 00:36:52 Cumulative 6.3 hours Start 2026.03.26 @ 08:14:11 End 2026.03.26 @ 08:55:51 Sessions 1 Manual Loads 0 Difficulty Rogue Special Mode None Game No. 7 Rogue 7 Adventurer 0 Explorer 0 Win Type - Total 0 Types 0/0/0/0/0/0/0/0/0/0 Lore% 3 Gallery% 8 Achievement% 6 Wizard Run 0 Options --------- Layout 1 ASCII 0 Keyboard 1 Movement Numpad Keybinds 0 Fullscreen 1 Font 32/SmallcapsGlow Map View 50x35 Zoom Use 0% Tactical HUD 1 Map Filters NONE Filters NONE Steam 1 RUN: 90749db7-a9bf-46bb-b8eb-f52206758a32